[Event "AUT Bundesliga 2024-25"]
[Site "Austria"]
[Date "2025.04.04"]
[Round "8.21"]
[White "Erdos, Viktor"]
[Black "Blohberger, Felix"]
[Result "1/2-1/2"]
[Annotator "RC"]
[ECO "C75"]
[WhiteElo "2542"]
[BlackElo "2511"]
[PlyCount "153"]
[EventDate "2024.08.28"]
[EventType "team-tourn"]
[EventCountry "AUT"]
[SourceTitle "playchess.com"]
[Source "ChessBase"]
[SourceQuality "1"]
[TimeControl "40/5400+30:1800+30"]

1. e4 {[%emt 0:00:07]} e5 {[%emt 0:00:36]} 2. Nf3 {[%emt 0:00:05]} Nc6 {[%emt 0:00:25]} 3. Bb5 {[%emt 0:00:05]} a6 {[%emt 0:00:44]} 4. Ba4 {[%emt 0:00:07]} d6 {[%emt 0:01:09]} 5. O-O {[%emt 0:00:41]} Bd7 {[%emt 0:00:44]} 6. c3 {[%emt 0:00:24]} Nge7 {[%emt 0:00:37]} 7. d4 {[%emt 0:01:48]} Ng6 {[%emt 0:00:06]} 8. Be3 {[%emt 0:09:34]} Be7 {[%emt 0:00:52]} 9. Nbd2 {[%emt 0:00:05]} O-O {[%emt 0:00:08]} 10. a3 {[%emt 0:11:19]} Kh8 {[%emt 0:08:21]} 11. Re1 {[%emt 0:03:33]} a5 {[%emt 0:34:26]} 12. Rc1 {[%emt 0:20:08]} Nh4 {[%emt 0:18:12]} 13. Nxh4 {[%emt 0:06:59]} Bxh4 {[%emt 0:00:07]} 14. Nf3 {[%emt 0:00:08]} Bf6 {[%emt 0:00:15]} 15. d5 {[%emt 0:00:15]} Nb8 {[%emt 0:01:22]} 16. c4 {[%emt 0:05:23]} b6 {[%emt 0:00:20]} 17. Bxd7 {[%emt 0:02:19]} Nxd7 {[%emt 0:00:43]} 18. b4 {[%emt 0:00:05]} axb4 {[%emt 0:01:47]} 19. axb4 {[%emt 0:00:03]} Be7 {[%emt 0:00:07]} 20. Qc2 {[%emt 0:03:46]} Qc8 {[%emt 0:07:30]} 21. Ra1 {[%emt 0:05:19]} Qb7 {[%emt 0:00:27]} 22. h3 {[%emt 0:00:21]} Ra6 {[%emt 0:04:47]} 23. Ra4 {[%emt 0:02:22]} Rfa8 {[%emt 0:00:32]} 24. Rea1 {[%emt 0:00:04]} R8a7 {[%emt 0:01:37]} 25. Ne1 {[%emt 0:03:30]} Qa8 {[%emt 0:01:06]} 26. Rxa6 {[%emt 0:00:11]} Rxa6 {[%emt 0:00:04]} 27. Rxa6 {[%emt 0:00:05]} Qxa6 {[%emt 0:00:04]} 28. Nd3 {[%emt 0:00:12]} Qa1+ {[%emt 0:02:57]} 29. Kh2 {[%emt 0:00:53]} g6 {[%emt 0:01:00]} 30. c5 {[%emt 0:03:16]} bxc5 {[%emt 0:00:11]} 31. bxc5 {[%emt 0:00:04]} Nxc5 {[%emt 0:02:52]} 32. Nxc5 {[%emt 0:00:51]} dxc5 {[%emt 0:00:05]} 33. Bxc5 {[%emt 0:01:13]} Bg5 {[%emt 0:05:14]} 34. Bb4 {[%emt 0:13:33]} Qa7 {[%emt 0:02:35]} 35. Qc5 {[%emt 0:00:05]} Qxc5 {[%emt 0:03:31]} 36. Bxc5 {[%emt 0:00:02]} f5 {[%emt 0:01:03]} 37. f3 {[%emt 0:01:15]} Kg7 {[%emt 0:00:55]} 38. Bb4 {[%emt 0:01:05]} Be3 {[%emt 0:00:48]} 39. Be7 {[%emt 0:00:34]} Ba7 {[%emt 0:00:41]} 40. Bd8 {[%emt 0:01:14]} Bb8 {[%emt 0:00:06]} 41. Kg3 {[%emt 0:31:49]} Kf7 {[%emt 0:01:15]} 42. Kh4 {[%emt 0:03:04]} h6 {[%emt 0:01:27]} 43. exf5 {[%emt 0:01:05]} gxf5 {[%emt 0:00:07]} 44. Kh5 {[%emt 0:00:04]} Kg7 {[%emt 0:03:17]} 45. Bh4 {[%emt 0:00:57]} Ba7 {[%emt 0:01:08]} 46. Bd8 {[%emt 0:00:16]} Bb8 {[%emt 0:00:10]} 47. Bh4 {[%emt 0:00:09]} Ba7 {[%emt 0:00:05]} 48. Be1 {[%emt 0:03:18]} e4 {[%emt 0:15:41]} 49. fxe4 {[%emt 0:00:26]} fxe4 {[%emt 0:00:06]} 50. Kg4 {[%emt 0:00:20]} Kg6 {[%emt 0:06:43]} 51. Kf4 {[%emt 0:00:18]} e3 {[%emt 0:00:04]} 52. Kf3 {[%emt 0:00:27]} Bb6 {[%emt 0:01:13]} 53. Bg3 {[%emt 0:00:46]} Kf5 {[%emt 0:02:12]} 54. Bf4 {[%emt 0:00:23]} h5 {[%emt 0:00:02]} 55. g4+ {[%emt 0:00:22]} hxg4+ {[%emt 0:00:03]} 56. hxg4+ {[%emt 0:00:02]} Kf6 {[%emt 0:00:08]} 57. Ke2 {[%emt 0:00:40]} Ke7 {[%emt 0:02:26]} 58. Kd3 {[%emt 0:01:22]} Kf6 {[%emt 0:01:09]} 59. Ke2 {[%emt 0:00:24]} Ke7 {[%emt 0:00:06]} 60. Be5 {[%emt 0:00:17]} Kf7 {[%emt 0:00:59]} 61. Kf3 {[%emt 0:00:24]} Kg6 {[%emt 0:00:22]} 62. Bb2 {[%emt 0:00:54]} Kg5 {[%emt 0:00:42]} 63. Bc3 {[%emt 0:00:30]} Kg6 {[%emt 0:01:31]} 64. Be5 {[%emt 0:00:15]} Kg5 {[%emt 0:00:33]} 65. Bg3 {[%emt 0:00:16]} e2 {[%emt 0:01:19]} 66. Bf4+ {[%emt 0:00:41]} Kh4 {[%emt 0:00:05]} 67. Bg3+ {[%emt 0:00:07]} Kg5 {[%emt 0:00:05]} 68. Bf4+ {[%emt 0:00:54]} Kh4 {[%emt 0:00:04]} 69. Bd2 {[%emt 0:00:02]} Bc5 {[%emt 0:00:32]} 70. Be1+ {[%emt 0:00:23]} Kg5 {[%emt 0:00:06]} 71. Bd2+ {[%emt 0:00:05]} Kh4 {[%emt 0:00:04]} 72. Ba5 {[%emt 0:00:39]} Bd6 {[%emt 0:01:30]} 73. Be1+ {[%emt 0:00:59]} Kg5 {[%emt 0:00:09]} 74. Bd2+ {[%emt 0:00:04]} Kh4 {[%emt 0:00:06]} 75. g5 {[%emt 0:01:07]} e1=Q {[%emt 0:00:16]} 76. Bxe1+ {[%emt 0:00:03]} Kxg5 {[%emt 0:00:07]} 77. Ke4 {[%emt 0:00:04]} 1/2-1/2

[Event "AUT Bundesliga 2024-25"]
[Site "Austria"]
[Date "2025.04.04"]
[Round "8.22"]
[White "Peyrer, Konstantin"]
[Black "Sankalp Gupta"]
[Result "0-1"]
[Annotator "RC"]
[ECO "A21"]
[WhiteElo "2451"]
[BlackElo "2548"]
[PlyCount "96"]
[EventDate "2024.08.28"]
[EventType "team-tourn"]
[EventCountry "AUT"]
[SourceTitle "playchess.com"]
[Source "ChessBase"]
[SourceQuality "1"]
[TimeControl "40/5400+30:1800+30"]

1. c4 {[%emt 0:00:07]} e5 {[%emt 0:00:26]} 2. Nc3 {[%emt 0:00:09]} Bb4 {[%emt 0:00:06]} 3. Nd5 {[%emt 0:00:09]} a5 {[%emt 0:01:47]} 4. a3 {[%emt 0:00:43]} Bc5 {[%emt 0:01:03]} 5. e3 {[%emt 0:00:22]} d6 {[%emt 0:01:25]} 6. Nf3 {[%emt 0:01:55]} Nd7 {[%emt 0:05:07]} 7. d4 {[%emt 0:16:22]} Ba7 {[%emt 0:00:27]} 8. Qc2 {[%emt 0:01:04]} c6 {[%emt 0:02:27]} 9. Nc3 {[%emt 0:01:47]} Ngf6 {[%emt 0:00:38]} 10. Bd2 {[%emt 0:01:54]} O-O {[%emt 0:00:37]} 11. O-O-O {[%emt 0:02:57]} Re8 {[%emt 0:03:03]} 12. h4 {[%emt 0:04:13]} e4 {[%emt 0:07:41]} 13. Ng5 {[%emt 0:01:15]} d5 {[%emt 0:00:18]} 14. f3 {[%emt 0:02:50]} h6 {[%emt 0:03:20]} 15. Nh3 {[%emt 0:04:22]} Nf8 {[%emt 0:01:49]} 16. Nf2 {[%emt 0:00:40]} c5 {[%emt 0:22:22]} 17. dxc5 {[%emt 0:08:11]} exf3 {[%emt 0:00:31]} 18. gxf3 {[%emt 0:02:02]} Bxc5 {[%emt 0:00:07]} 19. cxd5 {[%emt 0:00:15]} Bxe3 {[%emt 0:10:52]} 20. Nfe4 {[%emt 0:02:44]} Bxd2+ {[%emt 0:01:12]} 21. Rxd2 {[%emt 0:00:06]} Ng6 {[%emt 0:02:48]} 22. h5 {[%emt 0:05:50]} Ne5 {[%emt 0:07:10]} 23. Bb5 {[%emt 0:01:20]} Nxe4 {[%emt 0:02:47]} 24. fxe4 {[%emt 0:11:46]} Bd7 {[%emt 0:00:01]} 25. Bxd7 {[%emt 0:00:31]} Qxd7 {[%emt 0:00:02]} 26. Rg2 {[%emt 0:00:12]} Nf3 {[%emt 0:03:34]} 27. Qd3 {[%emt 0:12:43]} Ng5 {[%emt 0:00:09]} 28. Kb1 {[%emt 0:00:28]} Re5 {[%emt 0:00:55]} 29. Rc1 {[%emt 0:01:53]} Rae8 {[%emt 0:00:36]} 30. d6 {[%emt 0:01:29]} f6 {[%emt 0:03:21]} 31. a4 {[%emt 0:01:27]} Rc8 {[%emt 0:04:52]} 32. Rgc2 {[%emt 0:01:18]} Rc6 {[%emt 0:00:33]} 33. Nb5 {[%emt 0:02:21]} Nxe4 {[%emt 0:01:26]} 34. Rxc6 {[%emt 0:01:31]} bxc6 {[%emt 0:00:01]} 35. Qc4+ {[%emt 0:00:06]} Kf8 {[%emt 0:00:30]} 36. Qxc6 {[%emt 0:00:08]} Nd2+ {[%emt 0:00:08]} 37. Ka1 {[%emt 0:03:54]} Nb3+ {[%emt 0:00:06]} 38. Kb1 {[%emt 0:00:04]} Qf5+ {[%emt 0:00:30]} 39. Rc2 {[%emt 0:00:37]} Nd2+ {[%emt 0:02:49]} 40. Kc1 {[%emt 0:00:07]} Nb3+ {[%emt 0:05:50]} 41. Kb1 {[%emt 0:30:05]} Nd2+ {[%emt 0:11:21]} 42. Kc1 {[%emt 0:00:00]} Qf1+ {[%emt 0:09:13]} 43. Kxd2 {[%emt 0:00:00]} Qf2+ {[%emt 0:03:53]} 44. Kd3 {[%emt 0:00:00]} Re3+ {[%emt 0:00:14]} 45. Kd4 {[%emt 0:00:00]} Re2+ {[%emt 0:00:05]} 46. Kd5 {[%emt 0:00:00]} Qf3+ {[%emt 0:02:49]} 47. Kd4 {[%emt 0:00:00]} Qf4+ {[%emt 0:01:12]} 48. Kd5 {[%emt 0:00:00]} Re5# {[%emt 0:00:09]} 0-1

[Event "AUT Bundesliga 2024-25"]
[Site "Austria"]
[Date "2025.04.04"]
[Round "8.23"]
[White "Perunovic, Milos"]
[Black "Froewis, Georg"]
[Result "1-0"]
[Annotator "RC"]
[ECO "C18"]
[WhiteElo "2501"]
[BlackElo "2429"]
[PlyCount "77"]
[EventDate "2024.08.28"]
[EventType "team-tourn"]
[EventCountry "AUT"]
[SourceTitle "playchess.com"]
[Source "ChessBase"]
[SourceQuality "1"]
[TimeControl "40/5400+30:1800+30"]

1. e4 {[%emt 0:00:08]} e6 {[%emt 0:00:04]} 2. d4 {[%emt 0:00:26]} d5 {[%emt 0:00:04]} 3. Nc3 {[%emt 0:00:22]} Bb4 {[%emt 0:00:16]} 4. e5 {[%emt 0:00:27]} Ne7 {[%emt 0:00:07]} 5. a3 {[%emt 0:00:49]} Bxc3+ {[%emt 0:00:04]} 6. bxc3 {[%emt 0:00:07]} c5 {[%emt 0:00:03]} 7. Qg4 {[%emt 0:03:42]} cxd4 {[%emt 0:00:07]} 8. Bd3 {[%emt 0:05:34]} Qa5 {[%emt 0:01:24]} 9. Rb1 {[%emt 0:04:30]} Nbc6 {[%emt 0:03:49]} 10. Nf3 {[%emt 0:00:49]} Ng6 {[%emt 0:06:54]} 11. h4 {[%emt 0:02:01]} h5 {[%emt 0:03:20]} 12. Qg3 {[%emt 0:05:05]} Nce7 {[%emt 0:00:47]} 13. Bb5+ {[%emt 0:24:55]} Nc6 {[%emt 0:04:58]} 14. Nxd4 {[%emt 0:10:45]} O-O {[%emt 0:20:14]} 15. O-O {[%emt 0:10:22]} Qc7 {[%emt 0:17:17]} 16. Re1 {[%emt 0:09:59]} Nce7 {[%emt 0:07:33]} 17. Bd3 {[%emt 0:05:07]} Qxc3 {[%emt 0:03:44]} 18. Bb2 {[%emt 0:00:22]} Qd2 {[%emt 0:02:55]} 19. Re3 {[%emt 0:01:59]} Nf5 {[%emt 0:03:02]} 20. Bxf5 {[%emt 0:05:17]} exf5 {[%emt 0:00:04]} 21. Bc3 {[%emt 0:00:13]} f4 {[%emt 0:00:37]} 22. Qg5 {[%emt 0:00:05]} Qxd4 {[%emt 0:02:58]} 23. Bxd4 {[%emt 0:00:06]} fxe3 {[%emt 0:00:03]} 24. Bxe3 {[%emt 0:00:16]} Be6 {[%emt 0:01:29]} 25. Rxb7 {[%emt 0:01:24]} Rfc8 {[%emt 0:00:44]} 26. Qxh5 {[%emt 0:02:01]} Rxc2 {[%emt 0:00:58]} 27. Qg5 {[%emt 0:00:25]} Rc4 {[%emt 0:03:23]} 28. Rb4 {[%emt 0:00:12]} Rac8 {[%emt 0:02:19]} 29. h5 {[%emt 0:01:06]} Nh4 {[%emt 0:01:00]} 30. h6 {[%emt 0:02:09]} Nf5 {[%emt 0:00:52]} 31. hxg7 {[%emt 0:00:20]} Rxb4 {[%emt 0:00:57]} 32. axb4 {[%emt 0:00:01]} Rc4 {[%emt 0:00:52]} 33. Bc5 {[%emt 0:01:26]} a6 {[%emt 0:03:07]} 34. f3 {[%emt 0:01:35]} d4 {[%emt 0:08:17]} 35. g4 {[%emt 0:01:19]} Ne3 {[%emt 0:00:23]} 36. Qd8+ {[%emt 0:02:01]} Kxg7 {[%emt 0:00:06]} 37. Qg5+ {[%emt 0:00:13]} Kh7 {[%emt 0:00:04]} 38. Bf8 {[%emt 0:00:50]} Rc1+ {[%emt 0:00:08]} 39. Kh2 {[%emt 0:00:27]} 1-0

[Event "AUT Bundesliga 2024-25"]
[Site "Austria"]
[Date "2025.04.04"]
[Round "8.24"]
[White "Balint, Peter"]
[Black "Ivanisevic, Ivan"]
[Result "0-1"]
[Annotator "RC"]
[ECO "C63"]
[WhiteElo "2366"]
[BlackElo "2527"]
[PlyCount "176"]
[EventDate "2024.08.28"]
[EventType "team-tourn"]
[EventCountry "AUT"]
[SourceTitle "playchess.com"]
[Source "ChessBase"]
[SourceQuality "1"]
[TimeControl "40/5400+30:1800+30"]

1. e4 {[%emt 0:00:04]} e5 {[%emt 0:00:08]} 2. Nf3 {[%emt 0:00:06]} Nc6 {[%emt 0:00:14]} 3. Bb5 {[%emt 0:00:09]} f5 {[%emt 0:00:06]} 4. d3 {[%emt 0:00:09]} fxe4 {[%emt 0:00:09]} 5. dxe4 {[%emt 0:00:06]} Nf6 {[%emt 0:00:05]} 6. O-O {[%emt 0:00:26]} Bc5 {[%emt 0:00:06]} 7. Nc3 {[%emt 0:00:39]} d6 {[%emt 0:00:39]} 8. Be3 {[%emt 0:03:16]} Bxe3 {[%emt 0:04:04]} 9. fxe3 {[%emt 0:00:16]} O-O {[%emt 0:00:04]} 10. Bc4+ {[%emt 0:00:19]} Kh8 {[%emt 0:00:07]} 11. Ng5 {[%emt 0:00:09]} Qe8 {[%emt 0:10:16]} 12. Nd5 {[%emt 0:01:36]} Qg6 {[%emt 0:01:12]} 13. h4 {[%emt 0:03:24]} Bg4 {[%emt 0:07:55]} 14. Qe1 {[%emt 0:15:06]} h6 {[%emt 0:04:30]} 15. Qg3 {[%emt 0:04:06]} Bh5 {[%emt 0:16:10]} 16. Nxc7 {[%emt 0:10:02]} Rac8 {[%emt 0:00:45]} 17. Nce6 {[%emt 0:16:55]} Rfe8 {[%emt 0:01:14]} 18. Qh2 {[%emt 0:17:13]} Nd4 {[%emt 0:12:50]} 19. exd4 {[%emt 0:15:30]} Rxc4 {[%emt 0:00:06]} 20. dxe5 {[%emt 0:00:05]} dxe5 {[%emt 0:02:13]} 21. Rf5 {[%emt 0:08:40]} Bg4 {[%emt 0:17:16]} 22. Raf1 {[%emt 0:00:45]} Bxf5 {[%emt 0:00:57]} 23. exf5 {[%emt 0:00:06]} Qh5 {[%emt 0:00:03]} 24. Qxe5 {[%emt 0:01:45]} Rxh4 {[%emt 0:03:04]} 25. Nh3 {[%emt 0:00:06]} Rc4 {[%emt 0:06:23]} 26. Nhf4 {[%emt 0:00:44]} Qh2+ {[%emt 0:00:45]} 27. Kxh2 {[%emt 0:00:04]} Ng4+ {[%emt 0:00:03]} 28. Kg3 {[%emt 0:00:04]} Nxe5 {[%emt 0:00:05]} 29. Re1 {[%emt 0:00:07]} Nd7 {[%emt 0:00:28]} 30. c3 {[%emt 0:01:27]} Nf6 {[%emt 0:00:06]} 31. Kf3 {[%emt 0:00:11]} Kg8 {[%emt 0:01:18]} 32. Ng6 {[%emt 0:00:40]} Rc5 {[%emt 0:03:32]} 33. g4 {[%emt 0:00:34]} Rd5 {[%emt 0:00:32]} 34. Re2 {[%emt 0:00:22]} Rd3+ {[%emt 0:01:27]} 35. Kf4 {[%emt 0:00:04]} Rd1 {[%emt 0:00:11]} 36. Ne5 {[%emt 0:00:24]} g5+ {[%emt 0:01:22]} 37. Kf3 {[%emt 0:00:20]} Rh1 {[%emt 0:01:04]} 38. Kg2 {[%emt 0:00:34]} Rd1 {[%emt 0:00:47]} 39. Kf3 {[%emt 0:00:11]} h5 {[%emt 0:02:11]} 40. gxh5 {[%emt 0:01:45]} Rf1+ {[%emt 0:00:54]} 41. Rf2 {[%emt 0:04:04]} Rxf2+ {[%emt 0:08:07]} 42. Kxf2 {[%emt 0:28:57]} Nxh5 {[%emt 0:01:30]} 43. Kf3 {[%emt 0:00:00]} Ng7 {[%emt 0:06:29]} 44. Ng4 {[%emt 0:00:00]} Re7 {[%emt 0:01:39]} 45. Nxg5 {[%emt 0:00:00]} Nxf5 {[%emt 0:00:40]} 46. Ne4 {[%emt 0:00:00]} Kg7 {[%emt 0:00:15]} 47. Kf4 {[%emt 0:00:00]} Nh4 {[%emt 0:00:33]} 48. Ne3 {[%emt 0:00:00]} Ng6+ {[%emt 0:00:59]} 49. Kf3 {[%emt 0:00:00]} Ne5+ {[%emt 0:00:04]} 50. Ke2 {[%emt 0:00:00]} Kg6 {[%emt 0:00:05]} 51. Nd5 {[%emt 0:00:17]} Rh7 {[%emt 0:00:19]} 52. Nf2 {[%emt 0:03:09]} Kg5 {[%emt 0:02:10]} 53. b3 {[%emt 0:00:35]} Rh2 {[%emt 0:02:52]} 54. Ke3 {[%emt 0:00:21]} Ng4+ {[%emt 0:02:09]} 55. Nxg4 {[%emt 0:00:06]} Kxg4 {[%emt 0:00:04]} 56. a4 {[%emt 0:00:13]} Kf5 {[%emt 0:00:15]} 57. Kd4 {[%emt 0:00:30]} Rd2+ {[%emt 0:01:00]} 58. Kc5 {[%emt 0:00:16]} Ke5 {[%emt 0:00:56]} 59. c4 {[%emt 0:00:40]} Rd3 {[%emt 0:01:16]} 60. b4 {[%emt 0:01:15]} Rg3 {[%emt 0:01:24]} 61. b5 {[%emt 0:01:02]} Rg8 {[%emt 0:00:47]} 62. b6 {[%emt 0:00:03]} a6 {[%emt 0:01:18]} 63. Nc7 {[%emt 0:00:43]} Rg5 {[%emt 0:04:02]} 64. Nd5 {[%emt 0:01:03]} Ke6 {[%emt 0:01:42]} 65. a5 {[%emt 0:00:26]} Kd7 {[%emt 0:00:55]} 66. Kb4 {[%emt 0:00:07]} Kd6 {[%emt 0:00:24]} 67. Nc3 {[%emt 0:00:07]} Kc6 {[%emt 0:00:15]} 68. Ne4 {[%emt 0:00:40]} Rg1 {[%emt 0:00:12]} 69. Nc3 {[%emt 0:00:05]} Re1 {[%emt 0:00:10]} 70. Na4 {[%emt 0:00:19]} Kd6 {[%emt 0:01:29]} 71. Nc3 {[%emt 0:01:08]} Ke5 {[%emt 0:00:52]} 72. Na4 {[%emt 0:01:21]} Rb1+ {[%emt 0:00:34]} 73. Kc5 {[%emt 0:00:21]} Ra1 {[%emt 0:02:02]} 74. Kb4 {[%emt 0:00:04]} Kd4 {[%emt 0:00:43]} 75. Nc3 {[%emt 0:00:50]} Re1 {[%emt 0:00:23]} 76. c5 {[%emt 0:00:29]} Re6 {[%emt 0:00:37]} 77. Na2 {[%emt 0:00:38]} Re2 {[%emt 0:00:47]} 78. c6 {[%emt 0:00:33]} bxc6 {[%emt 0:00:20]} 79. Kb3 {[%emt 0:00:33]} c5 {[%emt 0:00:27]} 80. b7 {[%emt 0:00:14]} Re8 {[%emt 0:00:14]} 81. Nc3 {[%emt 0:00:09]} Rb8 {[%emt 0:00:37]} 82. Nb5+ {[%emt 0:00:07]} Ke5 {[%emt 0:01:13]} 83. Nc3 {[%emt 0:00:37]} Rxb7+ {[%emt 0:00:12]} 84. Kc4 {[%emt 0:00:04]} Rc7 {[%emt 0:00:35]} 85. Nd5 {[%emt 0:00:07]} Rc6 {[%emt 0:00:14]} 86. Nc3 {[%emt 0:01:18]} Rc8 {[%emt 0:00:43]} 87. Nd5 {[%emt 0:00:07]} Kd6 {[%emt 0:00:27]} 88. Nf6 {[%emt 0:00:43]} Rf8 {[%emt 0:00:11]} 0-1

[Event "AUT Bundesliga 2024-25"]
[Site "Austria"]
[Date "2025.04.04"]
[Round "8.30"]
[White "Balogh, Csaba"]
[Black "Csrnko, Werner"]
[Result "1-0"]
[Annotator "RC"]
[ECO "B00"]
[WhiteElo "2542"]
[BlackElo "1933"]
[PlyCount "51"]
[EventDate "2024.08.28"]
[EventType "team-tourn"]
[EventCountry "AUT"]
[SourceTitle "playchess.com"]
[Source "ChessBase"]
[SourceQuality "1"]
[TimeControl "40/5400+30:1800+30"]

1. e4 {[%emt 0:00:12]} b6 {[%emt 0:01:39]} 2. d4 {[%emt 0:01:10]} Bb7 {[%emt 0:00:13]} 3. Bd3 {[%emt 0:03:02]} e6 {[%emt 0:03:12]} 4. Nf3 {[%emt 0:01:46]} Be7 {[%emt 0:02:50]} 5. c4 {[%emt 0:04:15]} c5 {[%emt 0:01:19]} 6. d5 {[%emt 0:00:26]} exd5 {[%emt 0:00:15]} 7. cxd5 {[%emt 0:01:25]} d6 {[%emt 0:00:18]} 8. Nc3 {[%emt 0:04:34]} Nf6 {[%emt 0:00:12]} 9. Bb5+ {[%emt 0:04:26]} Nfd7 {[%emt 0:08:52]} 10. a4 {[%emt 0:00:55]} a6 {[%emt 0:00:07]} 11. Bd3 {[%emt 0:00:16]} Nf6 {[%emt 0:02:36]} 12. O-O {[%emt 0:01:09]} Nbd7 {[%emt 0:01:27]} 13. h3 {[%emt 0:01:01]} h6 {[%emt 0:00:30]} 14. Re1 {[%emt 0:09:29]} Qc7 {[%emt 0:04:51]} 15. Nh4 {[%emt 0:08:48]} Ne5 {[%emt 0:02:18]} 16. Bf1 {[%emt 0:05:55]} g5 {[%emt 0:03:36]} 17. Nf5 {[%emt 0:02:00]} O-O-O {[%emt 0:02:18]} 18. b4 {[%emt 0:10:49]} g4 {[%emt 0:08:45]} 19. bxc5 {[%emt 0:04:21]} bxc5 {[%emt 0:10:31]} 20. hxg4 {[%emt 0:00:32]} Nexg4 {[%emt 0:02:41]} 21. Bf4 {[%emt 0:00:43]} Bf8 {[%emt 0:08:50]} 22. Rb1 {[%emt 0:00:35]} h5 {[%emt 0:04:24]} 23. Re2 {[%emt 0:00:40]} Kd7 {[%emt 0:00:42]} 24. a5 {[%emt 0:02:06]} Ne8 {[%emt 0:02:18]} 25. Reb2 {[%emt 0:00:37]} Bc8 {[%emt 0:01:27]} 26. Qa4+ {[%emt 0:00:10]} 1-0

[Event "AUT Bundesliga 2024-25"]
[Site "Austria"]
[Date "2025.04.04"]
[Round "8.33"]
[White "Martinovic, Sasa"]
[Black "Rubil, Marko"]
[Result "1-0"]
[Annotator "RC"]
[ECO "D02"]
[WhiteElo "2549"]
[BlackElo "2276"]
[PlyCount "91"]
[EventDate "2024.08.28"]
[EventType "team-tourn"]
[EventCountry "AUT"]
[SourceTitle "playchess.com"]
[Source "ChessBase"]
[SourceQuality "1"]
[TimeControl "40/5400+30:1800+30"]

1. Nf3 {[%emt 0:00:02]} d5 {[%emt 0:01:21]} 2. g3 {[%emt 0:00:05]} g6 {[%emt 0:01:00]} 3. Bg2 {[%emt 0:00:16]} Bg7 {[%emt 0:00:02]} 4. d4 {[%emt 0:00:19]} Nh6 {[%emt 0:00:07]} 5. c3 {[%emt 0:00:18]} Nf5 {[%emt 0:00:08]} 6. h4 {[%emt 0:00:25]} h6 {[%emt 0:04:25]} 7. Nbd2 {[%emt 0:00:08]} Nd6 {[%emt 0:01:28]} 8. Nh2 {[%emt 0:00:26]} c6 {[%emt 0:00:54]} 9. h5 {[%emt 0:02:41]} g5 {[%emt 0:05:09]} 10. e4 {[%emt 0:00:08]} dxe4 {[%emt 0:07:28]} 11. Nxe4 {[%emt 0:00:04]} Nxe4 {[%emt 0:01:06]} 12. Bxe4 {[%emt 0:00:05]} Nd7 {[%emt 0:00:47]} 13. O-O {[%emt 0:03:58]} Nf6 {[%emt 0:00:18]} 14. Bg2 {[%emt 0:06:11]} Bf5 {[%emt 0:11:09]} 15. Re1 {[%emt 0:12:48]} Qd7 {[%emt 0:07:52]} 16. Nf3 {[%emt 0:03:18]} Bg4 {[%emt 0:21:36]} 17. Qa4 {[%emt 0:02:18]} Nxh5 {[%emt 0:04:27]} 18. Ne5 {[%emt 0:07:48]} Bxe5 {[%emt 0:00:23]} 19. Rxe5 {[%emt 0:00:19]} O-O {[%emt 0:06:13]} 20. Bd2 {[%emt 0:02:54]} f6 {[%emt 0:03:49]} 21. Re3 {[%emt 0:06:31]} Ng7 {[%emt 0:00:15]} 22. Rae1 {[%emt 0:00:47]} Rae8 {[%emt 0:01:16]} 23. Qxa7 {[%emt 0:14:32]} Nf5 {[%emt 0:00:54]} 24. Rd3 {[%emt 0:00:31]} Nd6 {[%emt 0:04:07]} 25. d5 {[%emt 0:05:09]} Qf5 {[%emt 0:04:08]} 26. Qe3 {[%emt 0:14:28]} Nc4 {[%emt 0:00:11]} 27. Qd4 {[%emt 0:00:19]} Nxb2 {[%emt 0:00:32]} 28. Rde3 {[%emt 0:04:42]} c5 {[%emt 0:00:01]} 29. Qe4 {[%emt 0:01:16]} b5 {[%emt 0:04:27]} 30. d6 {[%emt 0:01:36]} e6 {[%emt 0:04:54]} 31. Qb7 {[%emt 0:03:34]} Rb8 {[%emt 0:00:09]} 32. Qa7 {[%emt 0:01:12]} Qh7 {[%emt 0:01:47]} 33. Qxh7+ {[%emt 0:05:03]} Kxh7 {[%emt 0:00:01]} 34. f3 {[%emt 0:00:00]} Bf5 {[%emt 0:00:17]} 35. g4 {[%emt 0:00:05]} Bg6 {[%emt 0:00:58]} 36. Rxe6 {[%emt 0:00:04]} Nd3 {[%emt 0:02:33]} 37. Re7+ {[%emt 0:00:35]} Kh8 {[%emt 0:00:24]} 38. R1e6 {[%emt 0:00:38]} c4 {[%emt 0:01:07]} 39. d7 {[%emt 0:02:13]} Ne5 {[%emt 0:01:14]} 40. f4 {[%emt 0:00:45]} Nxg4 {[%emt 0:00:57]} 41. Bc6 {[%emt 0:06:53]} Bf5 {[%emt 0:13:37]} 42. Rd6 {[%emt 0:01:03]} gxf4 {[%emt 0:05:25]} 43. Bxf4 {[%emt 0:03:02]} Rg8 {[%emt 0:00:17]} 44. Kf1 {[%emt 0:01:14]} Bg6 {[%emt 0:03:11]} 45. Rde6 {[%emt 0:03:04]} Rbf8 {[%emt 0:06:21]} 46. Re8 {[%emt 0:01:09]} 1-0

[Event "AUT Bundesliga 2024-25"]
[Site "Austria"]
[Date "2025.04.04"]
[Round "8.34"]
[White "Kuthan, Andreas"]
[Black "Bosiocic, Marin"]
[Result "0-1"]
[Annotator "RC"]
[ECO "C41"]
[WhiteElo "2136"]
[BlackElo "2522"]
[PlyCount "70"]
[EventDate "2024.08.28"]
[EventType "team-tourn"]
[EventCountry "AUT"]
[SourceTitle "playchess.com"]
[Source "ChessBase"]
[SourceQuality "1"]
[TimeControl "40/5400+30:1800+30"]

1. e4 {[%emt 0:00:02]} e5 {[%emt 0:00:07]} 2. Nf3 {[%emt 0:00:06]} d6 {[%emt 0:00:07]} 3. d4 {[%emt 0:00:18]} exd4 {[%emt 0:00:05]} 4. Nxd4 {[%emt 0:00:08]} Nf6 {[%emt 0:00:03]} 5. Nc3 {[%emt 0:00:08]} Be7 {[%emt 0:00:08]} 6. Qf3 {[%emt 0:04:37]} O-O {[%emt 0:05:42]} 7. Nf5 {[%emt 0:01:19]} Bxf5 {[%emt 0:00:16]} 8. Qxf5 {[%emt 0:00:06]} Nc6 {[%emt 0:00:22]} 9. Be3 {[%emt 0:10:40]} Ne5 {[%emt 0:01:28]} 10. Be2 {[%emt 0:04:16]} g6 {[%emt 0:07:05]} 11. Qh3 {[%emt 0:14:42]} Qd7 {[%emt 0:02:56]} 12. Qxd7 {[%emt 0:05:29]} Nexd7 {[%emt 0:00:32]} 13. O-O-O {[%emt 0:01:51]} c6 {[%emt 0:00:30]} 14. f4 {[%emt 0:08:20]} Rfe8 {[%emt 0:02:36]} 15. Bf3 {[%emt 0:01:26]} Bf8 {[%emt 0:00:16]} 16. Rhe1 {[%emt 0:01:20]} Nb6 {[%emt 0:01:18]} 17. b3 {[%emt 0:09:17]} Nfd7 {[%emt 0:00:49]} 18. a4 {[%emt 0:02:29]} a5 {[%emt 0:00:32]} 19. g3 {[%emt 0:12:04]} f5 {[%emt 0:05:13]} 20. exf5 {[%emt 0:06:11]} gxf5 {[%emt 0:00:05]} 21. Bd4 {[%emt 0:01:43]} d5 {[%emt 0:00:29]} 22. Ne2 {[%emt 0:04:21]} Bb4 {[%emt 0:05:03]} 23. Rg1 {[%emt 0:01:01]} c5 {[%emt 0:03:00]} 24. Bb2 {[%emt 0:03:06]} d4 {[%emt 0:00:27]} 25. Rd3 {[%emt 0:02:49]} c4 {[%emt 0:08:31]} 26. Rxd4 {[%emt 0:00:05]} Re3 {[%emt 0:01:08]} 27. Bxb7 {[%emt 0:02:26]} Rae8 {[%emt 0:01:46]} 28. Bd5+ {[%emt 0:02:12]} Nxd5 {[%emt 0:04:07]} 29. Rxd5 {[%emt 0:00:04]} Nb6 {[%emt 0:01:51]} 30. Rxf5 {[%emt 0:00:11]} Rxe2 {[%emt 0:00:23]} 31. Be5 {[%emt 0:02:30]} Nd7 {[%emt 0:02:48]} 32. bxc4 {[%emt 0:00:42]} Nxe5 {[%emt 0:00:32]} 33. fxe5 {[%emt 0:00:15]} Ba3+ {[%emt 0:01:09]} 34. Kd1 {[%emt 0:00:43]} Rxh2 {[%emt 0:00:05]} 35. Rgf1 {[%emt 0:00:20]} Rd8+ {[%emt 0:00:16]} 0-1